[Event "Titled Tuesday Blitz January 17 Late 2023"]
[White "Pace, Christopher"]
[Black "Carbone, Diego"]
[WhiteFideId "2610167"]
[BlackFideId "3002179"]
[WhiteElo "2053"]
[BlackElo "2336"]
[Result "1-0"]
[Round "10"]
[TimeControl "180+2"]
[Date "2023.01.17"]
[WhiteClock "0:00:39"]
[BlackClock "0:00:07"]

1. d4 {[%clk 0:03:00]}  Nf6 {[%clk 0:02:58]} 2. c4 {[%clk 0:02:59]}  g6 {[%clk 0:02:58]} 3. g3 {[%clk 0:02:59]}  Bg7 {[%clk 0:02:57]} 4. Bg2 {[%clk 0:03:00]}  O-O {[%clk 0:02:58]} 5. Nc3 {[%clk 0:03:00]}  d6 {[%clk 0:02:58]} 6. e4 {[%clk 0:03:00]}  Nc6 {[%clk 0:02:55]} 7. Nge2 {[%clk 0:02:59]}  e5 {[%clk 0:02:54]} 8. d5 {[%clk 0:02:57]}  Na5 {[%clk 0:02:53]} 9. Qd3 {[%clk 0:02:52]}  c5 {[%clk 0:02:48]} 10. O-O {[%clk 0:02:52]}  a6 {[%clk 0:02:47]} 11. Bd2 {[%clk 0:02:36]}  b5 {[%clk 0:02:43]} 12. b3 {[%clk 0:02:32]}  Rb8 {[%clk 0:02:31]} 13. Rab1 {[%clk 0:02:27]}  Bg4 {[%clk 0:02:26]} 14. h3 {[%clk 0:02:23]}  Bd7 {[%clk 0:02:22]} 15. Kh2 {[%clk 0:02:09]}  Qc7 {[%clk 0:02:18]} 16. f4 {[%clk 0:02:07]}  exf4 {[%clk 0:02:13]} 17. gxf4 {[%clk 0:02:04]}  bxc4 {[%clk 0:02:10]} 18. bxc4 {[%clk 0:02:03]}  Rb4 {[%clk 0:02:10]} 19. e5 {[%clk 0:01:38]}  Nh5 {[%clk 0:02:08]} 20. Ne4 {[%clk 0:01:28]}  dxe5 {[%clk 0:01:41]} 21. Bxb4 {[%clk 0:01:24]}  cxb4 {[%clk 0:01:41]} 22. d6 {[%clk 0:01:25]}  Qxc4 {[%clk 0:01:38]} 23. Qxc4 {[%clk 0:01:25]}  Nxc4 {[%clk 0:01:38]} 24. Rxb4 {[%clk 0:01:25]}  Ne3 {[%clk 0:01:38]} 25. Rc1 {[%clk 0:01:22]}  exf4 {[%clk 0:01:35]} 26. Bf3 {[%clk 0:01:20]}  Be5 {[%clk 0:01:23]} 27. Rc5 {[%clk 0:01:11]}  f6 {[%clk 0:01:18]} 28. Rb7 {[%clk 0:01:06]}  Nf1+ {[%clk 0:01:13]} 29. Kg1 {[%clk 0:01:03]}  Bxh3 {[%clk 0:01:13]} 30. Rcc7 {[%clk 0:00:49]}  Rd8 {[%clk 0:00:49]} 31. Nf2 {[%clk 0:00:43]}  Nfg3 {[%clk 0:00:10]} 32. Bd5+ {[%clk 0:00:40]}  Kf8 {[%clk 0:00:08]} 33. Rf7+ {[%clk 0:00:40]}  Kg8 {[%clk 0:00:07]} 34. Rxh7+ {[%clk 0:00:39]}  Kf8 {[%clk 0:00:07]} 35. Rh8# {[%clk 0:00:39]} 1-0


[Site "https://www.chess.com"]

[Event "Titled Tuesday Blitz January 17 Late 2023"]
[White "Cueto, Jonny"]
[Black "Melikhov, Evgeny V."]
[WhiteFideId "3300145"]
[BlackFideId "4122046"]
[WhiteElo "2122"]
[BlackElo "2269"]
[Result "0-1"]
[Round "10"]
[TimeControl "180+2"]
[Date "2023.01.17"]
[WhiteClock "0:00:01"]
[BlackClock "0:00:18"]

1. d4 {[%clk 0:03:00]}  Nf6 {[%clk 0:02:59]} 2. Bf4 {[%clk 0:03:01]}  d5 {[%clk 0:02:59]} 3. e3 {[%clk 0:03:01]}  c5 {[%clk 0:02:59]} 4. Nf3 {[%clk 0:03:01]}  Nc6 {[%clk 0:02:58]} 5. Nbd2 {[%clk 0:03:01]}  cxd4 {[%clk 0:02:57]} 6. exd4 {[%clk 0:03:02]}  Bf5 {[%clk 0:02:56]} 7. c3 {[%clk 0:02:56]}  e6 {[%clk 0:02:55]} 8. Be2 {[%clk 0:02:50]}  Bd6 {[%clk 0:02:54]} 9. Bg3 {[%clk 0:02:38]}  h6 {[%clk 0:02:50]} 10. O-O {[%clk 0:02:37]}  Bxg3 {[%clk 0:02:49]} 11. hxg3 {[%clk 0:02:35]}  O-O {[%clk 0:02:42]} 12. Re1 {[%clk 0:02:31]}  Qc7 {[%clk 0:02:36]} 13. Nb3 {[%clk 0:02:19]}  Ne4 {[%clk 0:01:57]} 14. Nfd2 {[%clk 0:02:02]}  Nd6 {[%clk 0:01:35]} 15. Nf3 {[%clk 0:01:57]}  b6 {[%clk 0:01:31]} 16. Bd3 {[%clk 0:01:56]}  Bxd3 {[%clk 0:01:28]} 17. Qxd3 {[%clk 0:01:56]}  Ne4 {[%clk 0:01:24]} 18. Nbd2 {[%clk 0:01:53]}  Nxd2 {[%clk 0:01:24]} 19. Qxd2 {[%clk 0:01:54]}  b5 {[%clk 0:01:22]} 20. Ne5 {[%clk 0:01:33]}  Nxe5 {[%clk 0:01:21]} 21. Rxe5 {[%clk 0:01:34]}  a5 {[%clk 0:01:17]} 22. a4 {[%clk 0:00:58]}  b4 {[%clk 0:01:16]} 23. cxb4 {[%clk 0:00:58]}  axb4 {[%clk 0:01:14]} 24. Qxb4 {[%clk 0:00:58]}  Rfb8 {[%clk 0:01:13]} 25. Qd2 {[%clk 0:00:55]}  Qc4 {[%clk 0:01:12]} 26. a5 {[%clk 0:00:46]}  Rb4 {[%clk 0:01:10]} 27. Re3 {[%clk 0:00:36]}  Qb5 {[%clk 0:01:00]} 28. a6 {[%clk 0:00:16]}  Rxb2 {[%clk 0:00:59]} 29. Qa5 {[%clk 0:00:15]}  Rb1+ {[%clk 0:00:44]} 30. Kh2 {[%clk 0:00:14]}  Qxa5 {[%clk 0:00:43]} 31. Rxa5 {[%clk 0:00:13]}  Ra7 {[%clk 0:00:38]} 32. Rc3 {[%clk 0:00:12]}  Rb4 {[%clk 0:00:38]} 33. Rc8+ {[%clk 0:00:10]}  Kh7 {[%clk 0:00:37]} 34. Re8 {[%clk 0:00:03]}  Rb6 {[%clk 0:00:32]} 35. Rc5 {[%clk 0:00:02]}  Rbxa6 {[%clk 0:00:30]} 36. Rcc8 {[%clk 0:00:03]}  Ra4 {[%clk 0:00:26]} 37. Rh8+ {[%clk 0:00:03]}  Kg6 {[%clk 0:00:26]} 38. Rhg8 {[%clk 0:00:02]}  Rxd4 {[%clk 0:00:25]} 39. Rcf8 {[%clk 0:00:02]}  Rd2 {[%clk 0:00:23]} 40. f3 {[%clk 0:00:01]}  Raa2 {[%clk 0:00:22]} 41. Kh3 {[%clk 0:00:02]}  Rxg2 {[%clk 0:00:21]} 42. Rb8 {[%clk 0:00:02]}  h5 {[%clk 0:00:19]} 43. Kh4 {[%clk 0:00:01]}  Rh2# {[%clk 0:00:18]} 0-1


[Site "https://www.chess.com"]

[Event "Titled Tuesday Blitz January 17 Late 2023"]
[White "Almedina Ortiz, Edgardo J."]
[Black "Vasques, Antonio Pedro Freixial"]
[WhiteFideId "3100197"]
[BlackFideId "1908332"]
[WhiteElo "2156"]
[BlackElo "2214"]
[Result "1-0"]
[Round "10"]
[TimeControl "180+2"]
[Date "2023.01.17"]
[WhiteClock "0:00:39"]
[BlackClock "0:00:51"]

1. Nf3 {[%clk 0:02:59]}  Nf6 {[%clk 0:02:59]} 2. c4 {[%clk 0:02:58]}  g6 {[%clk 0:02:52]} 3. Nc3 {[%clk 0:02:57]}  Bg7 {[%clk 0:02:52]} 4. e4 {[%clk 0:02:57]}  d6 {[%clk 0:02:52]} 5. d4 {[%clk 0:02:57]}  O-O {[%clk 0:02:52]} 6. Be2 {[%clk 0:02:57]}  Na6 {[%clk 0:02:49]} 7. O-O {[%clk 0:02:55]}  e5 {[%clk 0:02:47]} 8. d5 {[%clk 0:02:36]}  Nc5 {[%clk 0:02:46]} 9. Qc2 {[%clk 0:02:35]}  a5 {[%clk 0:02:47]} 10. Ne1 {[%clk 0:02:32]}  c6 {[%clk 0:02:44]} 11. Nd3 {[%clk 0:02:28]}  Ncxe4 {[%clk 0:02:34]} 12. Nxe4 {[%clk 0:02:17]}  Nxe4 {[%clk 0:02:35]} 13. dxc6 {[%clk 0:02:05]}  bxc6 {[%clk 0:02:32]} 14. Bf3 {[%clk 0:02:05]}  d5 {[%clk 0:02:22]} 15. Bxe4 {[%clk 0:01:55]}  dxe4 {[%clk 0:02:22]} 16. Nc5 {[%clk 0:01:54]}  Bf5 {[%clk 0:02:12]} 17. Be3 {[%clk 0:01:51]}  Qh4 {[%clk 0:02:06]} 18. Rfd1 {[%clk 0:01:40]}  Rfd8 {[%clk 0:01:55]} 19. Nb7 {[%clk 0:01:27]}  Rxd1+ {[%clk 0:01:50]} 20. Rxd1 {[%clk 0:01:26]}  Bf8 {[%clk 0:01:49]} 21. Qa4 {[%clk 0:01:15]}  Qg4 {[%clk 0:01:31]} 22. h3 {[%clk 0:01:09]}  Qe2 {[%clk 0:01:29]} 23. Rd8 {[%clk 0:00:57]}  Rxd8 {[%clk 0:01:23]} 24. Nxd8 {[%clk 0:00:58]}  Be6 {[%clk 0:01:22]} 25. Nxe6 {[%clk 0:00:56]}  fxe6 {[%clk 0:01:21]} 26. Qxc6 {[%clk 0:00:55]}  Qxb2 {[%clk 0:01:17]} 27. Qxe6+ {[%clk 0:00:54]}  Kg7 {[%clk 0:01:15]} 28. c5 {[%clk 0:00:48]}  Bxc5 {[%clk 0:01:09]} 29. Qd7+ {[%clk 0:00:39]}  Kf8 {[%clk 0:00:51]} 1-0


[Site "https://www.chess.com"]

[Event "Titled Tuesday Blitz January 17 Late 2023"]
[White "Rosh Jain"]
[Black "Floresvillar Gonzalez, Luis Migu"]
[WhiteFideId "25789465"]
[BlackFideId "5100542"]
[WhiteElo "2248"]
[BlackElo "2043"]
[Result "1-0"]
[Round "10"]
[TimeControl "180+2"]
[Date "2023.01.17"]
[WhiteClock "0:00:08"]
[BlackClock "0:00:15"]

1. e4 {[%clk 0:02:55]}  c6 {[%clk 0:02:59]} 2. Nc3 {[%clk 0:02:54]}  d5 {[%clk 0:03:00]} 3. Nf3 {[%clk 0:02:54]}  Bg4 {[%clk 0:02:57]} 4. h3 {[%clk 0:02:51]}  Bh5 {[%clk 0:02:56]} 5. exd5 {[%clk 0:02:48]}  cxd5 {[%clk 0:02:56]} 6. Bb5+ {[%clk 0:02:47]}  Nc6 {[%clk 0:02:50]} 7. g4 {[%clk 0:02:34]}  Bg6 {[%clk 0:02:49]} 8. Ne5 {[%clk 0:02:34]}  Rc8 {[%clk 0:02:49]} 9. d4 {[%clk 0:02:27]}  e6 {[%clk 0:02:46]} 10. h4 {[%clk 0:02:20]}  f6 {[%clk 0:02:41]} 11. Nxg6 {[%clk 0:02:17]}  hxg6 {[%clk 0:02:40]} 12. Qd3 {[%clk 0:02:13]}  Ne7 {[%clk 0:02:39]} 13. Be3 {[%clk 0:02:07]}  Qd6 {[%clk 0:02:31]} 14. O-O-O {[%clk 0:01:55]}  a6 {[%clk 0:02:31]} 15. Bxc6+ {[%clk 0:01:53]}  Rxc6 {[%clk 0:02:28]} 16. Ne2 {[%clk 0:01:53]}  b5 {[%clk 0:02:23]} 17. Nf4 {[%clk 0:01:49]}  Kf7 {[%clk 0:02:20]} 18. Bd2 {[%clk 0:01:39]}  b4 {[%clk 0:02:15]} 19. Rde1 {[%clk 0:01:36]}  Qb8 {[%clk 0:02:04]} 20. h5 {[%clk 0:01:31]}  gxh5 {[%clk 0:02:00]} 21. gxh5 {[%clk 0:01:27]}  Rh6 {[%clk 0:01:51]} 22. Ng6 {[%clk 0:01:26]}  Nxg6 {[%clk 0:01:24]} 23. Bxh6 {[%clk 0:01:25]}  Nf4 {[%clk 0:01:22]} 24. Bxf4 {[%clk 0:01:24]}  Qxf4+ {[%clk 0:01:21]} 25. Kb1 {[%clk 0:01:24]}  Qxf2 {[%clk 0:01:16]} 26. Rhf1 {[%clk 0:01:11]}  Qh4 {[%clk 0:01:14]} 27. Qg6+ {[%clk 0:01:09]}  Ke7 {[%clk 0:01:06]} 28. h6 {[%clk 0:00:59]}  Qxh6 {[%clk 0:01:04]} 29. Qg2 {[%clk 0:00:48]}  Qh7 {[%clk 0:01:00]} 30. Re2 {[%clk 0:00:39]}  Kf7 {[%clk 0:00:55]} 31. Rfe1 {[%clk 0:00:36]}  a5 {[%clk 0:00:53]} 32. b3 {[%clk 0:00:32]}  a4 {[%clk 0:00:52]} 33. bxa4 {[%clk 0:00:30]}  Ra6 {[%clk 0:00:44]} 34. Qg4 {[%clk 0:00:25]}  Qf5 {[%clk 0:00:39]} 35. Qxf5 {[%clk 0:00:24]}  exf5 {[%clk 0:00:39]} 36. Re8 {[%clk 0:00:20]}  g5 {[%clk 0:00:32]} 37. Rd8 {[%clk 0:00:19]}  f4 {[%clk 0:00:27]} 38. Rxd5 {[%clk 0:00:19]}  Rxa4 {[%clk 0:00:26]} 39. Rd7+ {[%clk 0:00:18]}  Kg6 {[%clk 0:00:24]} 40. d5 {[%clk 0:00:15]}  Ra5 {[%clk 0:00:20]} 41. Rd8 {[%clk 0:00:14]}  Bc5 {[%clk 0:00:17]} 42. d6 {[%clk 0:00:14]}  Ra6 {[%clk 0:00:15]} 43. d7 {[%clk 0:00:14]}  Rd6 {[%clk 0:00:15]} 44. Rg8+ {[%clk 0:00:14]}  Kf5 {[%clk 0:00:13]} 45. d8=Q {[%clk 0:00:15]}  Rxd8 {[%clk 0:00:14]} 46. Rxd8 {[%clk 0:00:16]}  g4 {[%clk 0:00:14]} 47. Rd5+ {[%clk 0:00:16]}  Kg6 {[%clk 0:00:14]} 48. Rxc5 {[%clk 0:00:17]}  g3 {[%clk 0:00:14]} 49. Rd5 {[%clk 0:00:15]}  f5 {[%clk 0:00:14]} 50. Rd3 {[%clk 0:00:13]}  Kg5 {[%clk 0:00:14]} 51. Rf1 {[%clk 0:00:08]}  Kg4 {[%clk 0:00:14]} 52. Rdf3 {[%clk 0:00:07]}  g2 {[%clk 0:00:13]} 53. Rxf4+ {[%clk 0:00:07]}  Kg3 {[%clk 0:00:13]} 54. Rxf5 {[%clk 0:00:06]}  gxf1=Q+ {[%clk 0:00:12]} 55. Rxf1 {[%clk 0:00:06]}  Kg2 {[%clk 0:00:13]} 56. Rf4 {[%clk 0:00:06]}  Kg3 {[%clk 0:00:14]} 57. Rxb4 {[%clk 0:00:07]}  Kf3 {[%clk 0:00:13]} 58. a4 {[%clk 0:00:05]}  Ke3 {[%clk 0:00:14]} 59. a5 {[%clk 0:00:06]}  Kd2 {[%clk 0:00:14]} 60. a6 {[%clk 0:00:06]}  Kc3 {[%clk 0:00:15]} 61. Rb3+ {[%clk 0:00:06]}  Kd2 {[%clk 0:00:15]} 62. a7 {[%clk 0:00:07]}  Ke2 {[%clk 0:00:15]} 63. a8=Q {[%clk 0:00:08]}  Kf2 {[%clk 0:00:16]} 64. Qe4 {[%clk 0:00:07]}  Kf1 {[%clk 0:00:16]} 65. Rf3+ {[%clk 0:00:06]}  Kg2 {[%clk 0:00:15]} 66. Qg4+ {[%clk 0:00:07]}  Kh2 {[%clk 0:00:15]} 67. Rh3# {[%clk 0:00:08]} 1-0


[Site "https://www.chess.com"]

[Event "Titled Tuesday Blitz January 17 Late 2023"]
[White "Stanisz, Patryk"]
[Black "Stead, Kerry"]
[WhiteFideId "1123106"]
[BlackFideId "3202577"]
[WhiteElo "2161"]
[BlackElo "1908"]
[Result "0-1"]
[Round "10"]
[TimeControl "180+2"]
[Date "2023.01.17"]
[WhiteClock "0:00:03"]
[BlackClock "0:00:01"]

1. Nf3 {[%clk 0:03:00]}  c5 {[%clk 0:02:58]} 2. e4 {[%clk 0:02:56]}  Nc6 {[%clk 0:02:55]} 3. d4 {[%clk 0:02:56]}  cxd4 {[%clk 0:02:56]} 4. Nxd4 {[%clk 0:02:57]}  Nf6 {[%clk 0:02:55]} 5. Nc3 {[%clk 0:02:56]}  d6 {[%clk 0:02:54]} 6. Be2 {[%clk 0:02:48]}  g6 {[%clk 0:02:54]} 7. Be3 {[%clk 0:02:47]}  Bg7 {[%clk 0:02:54]} 8. O-O {[%clk 0:02:46]}  O-O {[%clk 0:02:53]} 9. f3 {[%clk 0:02:46]}  Bd7 {[%clk 0:02:52]} 10. Qd2 {[%clk 0:02:44]}  Rc8 {[%clk 0:02:50]} 11. Nxc6 {[%clk 0:02:33]}  Bxc6 {[%clk 0:02:46]} 12. a4 {[%clk 0:02:13]}  a6 {[%clk 0:02:42]} 13. a5 {[%clk 0:02:12]}  Nd7 {[%clk 0:02:36]} 14. Rfd1 {[%clk 0:02:04]}  Qc7 {[%clk 0:02:27]} 15. Ra2 {[%clk 0:02:02]}  Rfd8 {[%clk 0:02:23]} 16. Bg5 {[%clk 0:01:53]}  Nc5 {[%clk 0:02:18]} 17. Bc4 {[%clk 0:01:39]}  Ne6 {[%clk 0:01:46]} 18. Bxe6 {[%clk 0:01:31]}  fxe6 {[%clk 0:01:46]} 19. Be3 {[%clk 0:01:27]}  Rf8 {[%clk 0:01:41]} 20. Ne2 {[%clk 0:01:08]}  e5 {[%clk 0:01:37]} 21. c3 {[%clk 0:00:58]}  Qd7 {[%clk 0:01:36]} 22. b3 {[%clk 0:00:46]}  e6 {[%clk 0:01:35]} 23. c4 {[%clk 0:00:46]}  d5 {[%clk 0:01:28]} 24. exd5 {[%clk 0:00:43]}  exd5 {[%clk 0:01:28]} 25. cxd5 {[%clk 0:00:44]}  Bb5 {[%clk 0:01:24]} 26. Nc3 {[%clk 0:00:44]}  Rf5 {[%clk 0:01:11]} 27. Ne4 {[%clk 0:00:42]}  Re8 {[%clk 0:00:56]} 28. Rc2 {[%clk 0:00:41]}  h5 {[%clk 0:00:45]} 29. d6 {[%clk 0:00:35]}  Bc6 {[%clk 0:00:45]} 30. Qb4 {[%clk 0:00:29]}  Kh7 {[%clk 0:00:42]} 31. Ng5+ {[%clk 0:00:22]}  Kh8 {[%clk 0:00:39]} 32. h4 {[%clk 0:00:22]}  e4 {[%clk 0:00:32]} 33. fxe4 {[%clk 0:00:18]}  Rfe5 {[%clk 0:00:30]} 34. Qc4 {[%clk 0:00:16]}  Rf8 {[%clk 0:00:20]} 35. Rf2 {[%clk 0:00:15]}  Rxf2 {[%clk 0:00:16]} 36. Bxf2 {[%clk 0:00:16]}  Qg4 {[%clk 0:00:15]} 37. Nf7+ {[%clk 0:00:15]}  Kh7 {[%clk 0:00:13]} 38. Re1 {[%clk 0:00:11]}  Rxe4 {[%clk 0:00:10]} 39. Ng5+ {[%clk 0:00:10]}  Kh8 {[%clk 0:00:04]} 40. Nxe4 {[%clk 0:00:10]}  Be5 {[%clk 0:00:02]} 41. Ng5 {[%clk 0:00:03]}  Qxg2# {[%clk 0:00:01]} 0-1


[Site "https://www.chess.com"]

[Event "Titled Tuesday Blitz January 17 Late 2023"]
[White "Curtis, John"]
[Black "Thiel, Thomas"]
[WhiteFideId "3200256"]
[BlackFideId "4615964"]
[WhiteElo "2292"]
[BlackElo "2234"]
[Result "1-0"]
[Round "10"]
[TimeControl "180+2"]
[Date "2023.01.17"]
[WhiteClock "0:00:32"]
[BlackClock "0:00:02"]

1. e4 {[%clk 0:03:00]}  d5 {[%clk 0:02:59]} 2. exd5 {[%clk 0:02:58]}  Nf6 {[%clk 0:02:59]} 3. Bb5+ {[%clk 0:02:57]}  Nbd7 {[%clk 0:02:57]} 4. c4 {[%clk 0:02:56]}  a6 {[%clk 0:02:56]} 5. Bxd7+ {[%clk 0:02:55]}  Qxd7 {[%clk 0:02:56]} 6. d4 {[%clk 0:02:47]}  b5 {[%clk 0:02:53]} 7. b3 {[%clk 0:02:47]}  bxc4 {[%clk 0:02:39]} 8. bxc4 {[%clk 0:02:46]}  c6 {[%clk 0:02:34]} 9. Nf3 {[%clk 0:02:46]}  cxd5 {[%clk 0:02:32]} 10. Ne5 {[%clk 0:02:45]}  Qc7 {[%clk 0:02:29]} 11. c5 {[%clk 0:02:42]}  e6 {[%clk 0:02:27]} 12. Bf4 {[%clk 0:02:40]}  Qa5+ {[%clk 0:02:26]} 13. Qd2 {[%clk 0:02:35]}  Qxd2+ {[%clk 0:02:25]} 14. Nxd2 {[%clk 0:02:34]}  Nd7 {[%clk 0:02:15]} 15. Rb1 {[%clk 0:02:27]}  Nxe5 {[%clk 0:02:13]} 16. Bxe5 {[%clk 0:02:24]}  Bd7 {[%clk 0:02:08]} 17. O-O {[%clk 0:02:15]}  f6 {[%clk 0:02:07]} 18. Bg3 {[%clk 0:02:10]}  h5 {[%clk 0:02:05]} 19. Rb6 {[%clk 0:02:08]}  h4 {[%clk 0:02:02]} 20. Bd6 {[%clk 0:02:08]}  Kf7 {[%clk 0:01:30]} 21. Rfb1 {[%clk 0:01:54]}  Bb5 {[%clk 0:01:19]} 22. Bxf8 {[%clk 0:01:29]}  Rhxf8 {[%clk 0:01:16]} 23. Rb4 {[%clk 0:01:29]}  Rfc8 {[%clk 0:01:13]} 24. a4 {[%clk 0:01:26]}  Bc6 {[%clk 0:01:12]} 25. a5 {[%clk 0:01:17]}  Bb5 {[%clk 0:01:10]} 26. f4 {[%clk 0:01:14]}  Ra7 {[%clk 0:00:56]} 27. Nf3 {[%clk 0:01:14]}  Rh8 {[%clk 0:00:53]} 28. Kf2 {[%clk 0:01:13]}  Rh5 {[%clk 0:00:50]} 29. Ke3 {[%clk 0:01:12]}  Ke7 {[%clk 0:00:43]} 30. Rb8 {[%clk 0:01:01]}  Rc7 {[%clk 0:00:38]} 31. Rb6 {[%clk 0:00:53]}  Kf7 {[%clk 0:00:37]} 32. g4 {[%clk 0:00:54]}  hxg3 {[%clk 0:00:35]} 33. hxg3 {[%clk 0:00:54]}  Rh1 {[%clk 0:00:34]} 34. g4 {[%clk 0:00:50]}  Ra1 {[%clk 0:00:32]} 35. R4xb5 {[%clk 0:00:45]}  axb5 {[%clk 0:00:29]} 36. Rxb5 {[%clk 0:00:45]}  Ra7 {[%clk 0:00:28]} 37. f5 {[%clk 0:00:44]}  R1xa5 {[%clk 0:00:26]} 38. Rb6 {[%clk 0:00:44]}  Re7 {[%clk 0:00:21]} 39. Kf4 {[%clk 0:00:41]}  Ra4 {[%clk 0:00:18]} 40. g5 {[%clk 0:00:39]}  e5+ {[%clk 0:00:18]} 41. Kg4 {[%clk 0:00:40]}  exd4 {[%clk 0:00:17]} 42. g6+ {[%clk 0:00:39]}  Kf8 {[%clk 0:00:15]} 43. Rd6 {[%clk 0:00:38]}  d3+ {[%clk 0:00:14]} 44. Kg3 {[%clk 0:00:37]}  Re5 {[%clk 0:00:10]} 45. Nxe5 {[%clk 0:00:36]}  fxe5 {[%clk 0:00:10]} 46. c6 {[%clk 0:00:37]}  Rc4 {[%clk 0:00:07]} 47. Rxd5 {[%clk 0:00:36]}  e4 {[%clk 0:00:07]} 48. Kf4 {[%clk 0:00:34]}  Rxc6 {[%clk 0:00:06]} 49. Kxe4 {[%clk 0:00:35]}  Ke7 {[%clk 0:00:03]} 50. Rxd3 {[%clk 0:00:32]}  Kf6 {[%clk 0:00:03]} 51. Rd4 {[%clk 0:00:32]}  Rb6 {[%clk 0:00:02]} 52. Kf4 {[%clk 0:00:32]}  Rc6 {[%clk 0:00:02]} 53. Re4 {[%clk 0:00:33]}  Rb6 {[%clk 0:00:02]} 54. Rd4 {[%clk 0:00:33]}  Rc6 {[%clk 0:00:02]} 55. Rd7 {[%clk 0:00:32]} 1-0


[Site "https://www.chess.com"]

[Event "Titled Tuesday Blitz January 17 Late 2023"]
[White "Souza, Gustavo Horokoski De"]
[Black "Sabar, Ethmane Daouda"]
[WhiteFideId "2146584"]
[BlackFideId "19600097"]
[WhiteElo "1943"]
[BlackElo "2040"]
[Result "1-0"]
[Round "10"]
[TimeControl "180+2"]
[Date "2023.01.17"]
[WhiteClock "0:00:04"]
[BlackClock "0:00:02"]

1. d4 {[%clk 0:03:00]}  d5 {[%clk 0:02:52]} 2. c4 {[%clk 0:03:00]}  e6 {[%clk 0:02:52]} 3. Nc3 {[%clk 0:02:59]}  c6 {[%clk 0:02:52]} 4. e4 {[%clk 0:02:58]}  dxe4 {[%clk 0:02:51]} 5. Nxe4 {[%clk 0:02:59]}  Bb4+ {[%clk 0:02:51]} 6. Bd2 {[%clk 0:02:55]}  Qxd4 {[%clk 0:02:49]} 7. Bxb4 {[%clk 0:02:54]}  Qxe4+ {[%clk 0:02:49]} 8. Be2 {[%clk 0:02:54]}  Qxg2 {[%clk 0:02:48]} 9. Bf3 {[%clk 0:02:51]}  Qg5 {[%clk 0:02:48]} 10. Qd6 {[%clk 0:02:14]}  Nd7 {[%clk 0:02:41]} 11. Ne2 {[%clk 0:02:13]}  c5 {[%clk 0:02:40]} 12. Bc3 {[%clk 0:01:45]}  Ngf6 {[%clk 0:02:19]} 13. Rg1 {[%clk 0:01:39]}  Qf5 {[%clk 0:02:10]} 14. Rg3 {[%clk 0:01:36]}  Ne4 {[%clk 0:01:36]} 15. Bxe4 {[%clk 0:01:28]}  Qxe4 {[%clk 0:01:37]} 16. Bxg7 {[%clk 0:01:28]}  Rg8 {[%clk 0:01:31]} 17. Rd1 {[%clk 0:01:10]}  Qh1+ {[%clk 0:00:54]} 18. Ng1 {[%clk 0:00:59]}  Qe4+ {[%clk 0:00:49]} 19. Ne2 {[%clk 0:00:54]}  Qh1+ {[%clk 0:00:49]} 20. Rg1 {[%clk 0:00:51]}  Qc6 {[%clk 0:00:48]} 21. Qf4 {[%clk 0:00:43]}  b6 {[%clk 0:00:38]} 22. Rd6 {[%clk 0:00:33]}  Qa4 {[%clk 0:00:24]} 23. Rd2 {[%clk 0:00:17]}  Bb7 {[%clk 0:00:19]} 24. Nc3 {[%clk 0:00:11]}  Qc6 {[%clk 0:00:16]} 25. Nd5 {[%clk 0:00:09]}  exd5 {[%clk 0:00:12]} 26. Re2+ {[%clk 0:00:09]}  Kd8 {[%clk 0:00:05]} 27. cxd5 {[%clk 0:00:05]}  Qxd5 {[%clk 0:00:03]} 28. Bf6+ {[%clk 0:00:05]}  Nxf6 {[%clk 0:00:02]} 29. Qxf6+ {[%clk 0:00:04]} 1-0


[Site "https://www.chess.com"]

[Event "Titled Tuesday Blitz January 17 Late 2023"]
[White "Adithya A Chullikkad"]
[Black "Papp, Petra"]
[WhiteFideId "45078734"]
[BlackFideId "739049"]
[WhiteElo "2259"]
[BlackElo "2343"]
[Result "1/2-1/2"]
[Round "10"]
[TimeControl "180+2"]
[Date "2023.01.17"]
[WhiteClock "0:00:23"]
[BlackClock "0:00:05"]

1. d4 {[%clk 0:02:46]}  Nf6 {[%clk 0:02:55]} 2. Bf4 {[%clk 0:02:43]}  g6 {[%clk 0:02:55]} 3. e3 {[%clk 0:02:42]}  Bg7 {[%clk 0:02:55]} 4. h3 {[%clk 0:02:42]}  O-O {[%clk 0:02:55]} 5. c3 {[%clk 0:02:42]}  d5 {[%clk 0:02:53]} 6. Bd3 {[%clk 0:02:40]}  c5 {[%clk 0:02:53]} 7. Nd2 {[%clk 0:02:39]}  Nc6 {[%clk 0:02:54]} 8. Ngf3 {[%clk 0:02:39]}  Nd7 {[%clk 0:02:51]} 9. O-O {[%clk 0:02:38]}  e5 {[%clk 0:02:48]} 10. dxe5 {[%clk 0:02:38]}  Ndxe5 {[%clk 0:02:47]} 11. Nxe5 {[%clk 0:02:38]}  Nxe5 {[%clk 0:02:45]} 12. Be2 {[%clk 0:02:38]}  b6 {[%clk 0:02:40]} 13. Nf3 {[%clk 0:02:38]}  Re8 {[%clk 0:02:33]} 14. Nxe5 {[%clk 0:02:38]}  Bxe5 {[%clk 0:02:34]} 15. Bxe5 {[%clk 0:02:38]}  Rxe5 {[%clk 0:02:35]} 16. Bf3 {[%clk 0:02:38]}  Bb7 {[%clk 0:02:35]} 17. Qc2 {[%clk 0:02:34]}  Qc7 {[%clk 0:02:24]} 18. Rad1 {[%clk 0:02:33]}  Rd8 {[%clk 0:02:24]} 19. Rd2 {[%clk 0:02:33]}  Rg5 {[%clk 0:02:05]} 20. h4 {[%clk 0:02:25]}  Re5 {[%clk 0:02:04]} 21. Rfd1 {[%clk 0:02:24]}  Qe7 {[%clk 0:02:00]} 22. g3 {[%clk 0:02:23]}  Qe6 {[%clk 0:01:15]} 23. c4 {[%clk 0:02:04]}  Qf6 {[%clk 0:01:15]} 24. Bxd5 {[%clk 0:02:00]}  Bxd5 {[%clk 0:01:14]} 25. Rxd5 {[%clk 0:01:59]}  Rdxd5 {[%clk 0:01:14]} 26. Rxd5 {[%clk 0:01:59]}  Re7 {[%clk 0:00:55]} 27. Qd2 {[%clk 0:01:57]}  Qf3 {[%clk 0:00:54]} 28. Qc3 {[%clk 0:01:35]}  Re8 {[%clk 0:00:45]} 29. Rd7 {[%clk 0:01:28]}  a5 {[%clk 0:00:40]} 30. Rd6 {[%clk 0:01:27]}  Qb7 {[%clk 0:00:32]} 31. Qf6 {[%clk 0:01:19]}  b5 {[%clk 0:00:27]} 32. Rb6 {[%clk 0:01:10]}  Qe4 {[%clk 0:00:25]} 33. Rxb5 {[%clk 0:01:08]}  Qxc4 {[%clk 0:00:25]} 34. Rb7 {[%clk 0:00:58]}  Qxa2 {[%clk 0:00:22]} 35. b3 {[%clk 0:00:55]}  Qb1+ {[%clk 0:00:20]} 36. Kh2 {[%clk 0:00:53]}  Rf8 {[%clk 0:00:17]} 37. h5 {[%clk 0:00:37]}  gxh5 {[%clk 0:00:12]} 38. Re7 {[%clk 0:00:29]}  Qg6 {[%clk 0:00:12]} 39. Qh4 {[%clk 0:00:28]}  Rd8 {[%clk 0:00:10]} 40. Re5 {[%clk 0:00:27]}  Rd2 {[%clk 0:00:09]} 41. Rg5 {[%clk 0:00:27]}  Rxf2+ {[%clk 0:00:09]} 42. Kg1 {[%clk 0:00:28]}  Rf6 {[%clk 0:00:09]} 43. Qxh5 {[%clk 0:00:26]}  Kh8 {[%clk 0:00:07]} 44. Rxg6 {[%clk 0:00:26]}  Rxg6 {[%clk 0:00:07]} 45. Qxc5 {[%clk 0:00:24]}  Rxg3+ {[%clk 0:00:07]} 46. Kf2 {[%clk 0:00:24]}  Rg6 {[%clk 0:00:06]} 47. Qxa5 {[%clk 0:00:24]}  Rf6+ {[%clk 0:00:06]} 48. Ke2 {[%clk 0:00:23]}  Re6 {[%clk 0:00:05]} 49. Qc3+ {[%clk 0:00:23]}  Kg8 {[%clk 0:00:04]} 50. b4 {[%clk 0:00:24]}  h5 {[%clk 0:00:05]} 51. b5 {[%clk 0:00:25]}  h4 {[%clk 0:00:05]} 52. Qd4 {[%clk 0:00:24]}  h3 {[%clk 0:00:03]} 53. Qg4+ {[%clk 0:00:24]}  Rg6 {[%clk 0:00:04]} 54. Qxh3 {[%clk 0:00:24]}  f5 {[%clk 0:00:05]} 55. Qxf5 {[%clk 0:00:24]}  Rg7 {[%clk 0:00:05]} 56. b6 {[%clk 0:00:24]}  Rf7 {[%clk 0:00:06]} 57. Qe6 {[%clk 0:00:23]}  Kg7 {[%clk 0:00:05]} 58. Qxf7+ {[%clk 0:00:23]}  Kh8 {[%clk 0:00:05]} 59. b7 {[%clk 0:00:23]} 1/2-1/2


[Site "https://www.chess.com"]